[Event "December 5 Early 2023"]
[Site "https://www.chess.com"]
[Date "2023.12.05"]
[Round "5"]
[White "Kozelov, Roman"]
[Black "Papasimakopoulos, Alexandros"]
[Result "0-1"]
[Board "144"]
[TimeControl "180+1"]
[WhiteFideId "14133377"]
[BlackFideId "4244125"]
[WhiteElo "2435"]
[BlackElo "2649"]
[WhiteTeam "UKR"]
[BlackTeam "GRE"]
[WhiteClock "0:00:07"]
[BlackClock "0:00:31"]

1. e4 {[%clk 0:02:34]}  e6 {[%clk 0:02:59]} 2. d4 {[%clk 0:02:34]}  d5 {[%clk 0:02:57]} 3. Nc3 {[%clk 0:02:33]}  Bb4 {[%clk 0:02:55]} 4. e5 {[%clk 0:02:33]}  c5 {[%clk 0:02:40]} 5. a3 {[%clk 0:02:33]}  Bxc3+ {[%clk 0:02:39]} 6. bxc3 {[%clk 0:02:33]}  Nc6 {[%clk 0:02:39]} 7. a4 {[%clk 0:02:32]}  Qa5 {[%clk 0:02:39]} 8. Bd2 {[%clk 0:02:31]}  Nge7 {[%clk 0:02:38]} 9. Qg4 {[%clk 0:02:27]}  O-O {[%clk 0:02:37]} 10. Nf3 {[%clk 0:02:20]}  c4 {[%clk 0:02:31]} 11. h4 {[%clk 0:02:12]}  f6 {[%clk 0:02:26]} 12. h5 {[%clk 0:02:07]}  h6 {[%clk 0:02:14]} 13. Rh3 {[%clk 0:02:06]}  fxe5 {[%clk 0:02:11]} 14. dxe5 {[%clk 0:02:04]}  Nf5 {[%clk 0:02:10]} 15. Qg6 {[%clk 0:01:53]}  Bd7 {[%clk 0:02:02]} 16. Be2 {[%clk 0:01:18]}  Kh8 {[%clk 0:01:56]} 17. Kf1 {[%clk 0:01:03]}  Rad8 {[%clk 0:01:51]} 18. Kg1 {[%clk 0:01:02]}  Be8 {[%clk 0:01:33]} 19. Qg4 {[%clk 0:01:01]}  Qc7 {[%clk 0:01:27]} 20. Bf4 {[%clk 0:00:59]}  d4 {[%clk 0:01:25]} 21. Bxc4 {[%clk 0:00:55]}  Bf7 {[%clk 0:01:13]} 22. Bd3 {[%clk 0:00:53]}  dxc3 {[%clk 0:01:08]} 23. Nh4 {[%clk 0:00:46]}  Nxh4 {[%clk 0:01:01]} 24. Qxh4 {[%clk 0:00:44]}  Ne7 {[%clk 0:00:56]} 25. Rg3 {[%clk 0:00:35]}  Bg8 {[%clk 0:00:48]} 26. Qg4 {[%clk 0:00:22]}  Nf5 {[%clk 0:00:46]} 27. Rf3 {[%clk 0:00:19]}  Bh7 {[%clk 0:00:44]} 28. Rb1 {[%clk 0:00:18]}  Nd4 {[%clk 0:00:36]} 29. Rg3 {[%clk 0:00:18]}  Bxd3 {[%clk 0:00:36]} 30. cxd3 {[%clk 0:00:17]}  Rxf4 {[%clk 0:00:35]} 31. Qg6 {[%clk 0:00:14]}  Ne2+ {[%clk 0:00:32]} 32. Kh2 {[%clk 0:00:15]}  Nxg3 {[%clk 0:00:33]} 33. fxg3 {[%clk 0:00:15]}  Rf5 {[%clk 0:00:32]} 34. g4 {[%clk 0:00:07]}  Qxe5+ {[%clk 0:00:31]} 0-1

[Event "December 5 Early 2023"]
[Site "https://www.chess.com"]
[Date "2023.12.05"]
[Round "5"]
[White "Chirivi C, Jenny Astrid"]
[Black "Baches Garcia, Guillermo"]
[Result "0-1"]
[Board "151"]
[TimeControl "180+1"]
[WhiteFideId "4403061"]
[BlackFideId "2209764"]
[WhiteElo "2317"]
[BlackElo "2525"]
[WhiteTeam "COL"]
[BlackTeam "ESP"]
[WhiteClock "0:00:07"]
[BlackClock "0:00:36"]

1. d4 {[%clk 0:03:00]}  d5 {[%clk 0:02:59]} 2. c4 {[%clk 0:02:59]}  e6 {[%clk 0:03:00]} 3. Nc3 {[%clk 0:02:59]}  a6 {[%clk 0:03:01]} 4. Bf4 {[%clk 0:02:46]}  Nf6 {[%clk 0:02:57]} 5. e3 {[%clk 0:02:44]}  Bd6 {[%clk 0:02:54]} 6. Be5 {[%clk 0:02:42]}  c5 {[%clk 0:02:44]} 7. Nf3 {[%clk 0:02:38]}  cxd4 {[%clk 0:02:40]} 8. exd4 {[%clk 0:02:37]}  Nc6 {[%clk 0:02:39]} 9. cxd5 {[%clk 0:02:33]}  exd5 {[%clk 0:02:31]} 10. Be2 {[%clk 0:02:29]}  O-O {[%clk 0:02:28]} 11. O-O {[%clk 0:02:29]}  Re8 {[%clk 0:02:25]} 12. Bxf6 {[%clk 0:02:18]}  Qxf6 {[%clk 0:02:25]} 13. Nxd5 {[%clk 0:02:14]}  Qh6 {[%clk 0:02:16]} 14. g3 {[%clk 0:02:05]}  Bg4 {[%clk 0:02:06]} 15. Re1 {[%clk 0:01:57]}  Bxf3 {[%clk 0:01:45]} 16. Bxf3 {[%clk 0:01:56]}  Rxe1+ {[%clk 0:01:45]} 17. Qxe1 {[%clk 0:01:56]}  Nxd4 {[%clk 0:01:46]} 18. Bg2 {[%clk 0:01:52]}  Nc2 {[%clk 0:01:41]} 19. Ne7+ {[%clk 0:01:08]}  Bxe7 {[%clk 0:01:35]} 20. Qxe7 {[%clk 0:01:05]}  Nxa1 {[%clk 0:01:33]} 21. Qxb7 {[%clk 0:00:51]}  Qc1+ {[%clk 0:01:24]} 22. Bf1 {[%clk 0:00:50]}  Rd8 {[%clk 0:01:21]} 23. Kg2 {[%clk 0:00:48]}  Nc2 {[%clk 0:01:16]} 24. h4 {[%clk 0:00:38]}  Ne1+ {[%clk 0:01:13]} 25. Kh2 {[%clk 0:00:36]}  Nf3+ {[%clk 0:01:07]} 26. Kg2 {[%clk 0:00:33]}  Ne1+ {[%clk 0:01:00]} 27. Kh2 {[%clk 0:00:32]}  Qd2 {[%clk 0:00:52]} 28. Qb6 {[%clk 0:00:19]}  a5 {[%clk 0:00:44]} 29. Ba6 {[%clk 0:00:12]}  Qd4 {[%clk 0:00:36]} 30. Qxd4 {[%clk 0:00:11]}  Rxd4 {[%clk 0:00:37]} 31. a3 {[%clk 0:00:07]}  Rd2 {[%clk 0:00:36]} 0-1

[Event "December 5 Early 2023"]
[Site "https://www.chess.com"]
[Date "2023.12.05"]
[Round "5"]
[White "Senft, Sean"]
[Black "Barbot, Pierre"]
[Result "0-1"]
[Board "152"]
[TimeControl "180+1"]
[WhiteFideId "2044960"]
[BlackFideId "663727"]
[WhiteElo "2501"]
[BlackElo "2306"]
[WhiteTeam "USA"]
[BlackTeam "FRA"]
[WhiteClock "0:02:34"]
[BlackClock "0:00:06"]

1. d4 {[%clk 0:02:58]}  Nf6 {[%clk 0:02:59]} 2. c4 {[%clk 0:02:58]}  g6 {[%clk 0:02:58]} 3. Nc3 {[%clk 0:02:58]}  d5 {[%clk 0:02:58]} 4. Bg5 {[%clk 0:02:58]}  Ne4 {[%clk 0:02:46]} 5. Bh4 {[%clk 0:02:57]}  Nxc3 {[%clk 0:02:33]} 6. bxc3 {[%clk 0:02:58]}  Bg7 {[%clk 0:02:33]} 7. e3 {[%clk 0:02:59]}  O-O {[%clk 0:02:33]} 8. cxd5 {[%clk 0:02:59]}  Qxd5 {[%clk 0:02:31]} 9. Qb3 {[%clk 0:02:59]}  Qh5 {[%clk 0:02:18]} 10. Bxe7 {[%clk 0:02:58]}  Re8 {[%clk 0:02:16]} 11. Ba3 {[%clk 0:02:58]}  Be6 {[%clk 0:01:46]} 12. Qd1 {[%clk 0:02:54]}  Qd5 {[%clk 0:01:32]} 13. Nf3 {[%clk 0:02:53]}  Nd7 {[%clk 0:01:25]} 14. Be2 {[%clk 0:02:53]}  c5 {[%clk 0:01:25]} 15. O-O {[%clk 0:02:54]}  cxd4 {[%clk 0:01:21]} 16. cxd4 {[%clk 0:02:55]}  Rac8 {[%clk 0:01:12]} 17. Qd2 {[%clk 0:02:52]}  Nb6 {[%clk 0:01:10]} 18. Rfc1 {[%clk 0:02:51]}  Nc4 {[%clk 0:00:55]} 19. Bxc4 {[%clk 0:02:51]}  Rxc4 {[%clk 0:00:54]} 20. Rxc4 {[%clk 0:02:51]}  Qxc4 {[%clk 0:00:55]} 21. Qb4 {[%clk 0:02:38]}  b5 {[%clk 0:00:40]} 22. Qxc4 {[%clk 0:02:36]}  bxc4 {[%clk 0:00:41]} 23. Bb4 {[%clk 0:02:34]}  Rb8 {[%clk 0:00:32]} 24. a3 {[%clk 0:02:34]}  Rb5 {[%clk 0:00:31]} 25. Rc1 {[%clk 0:02:34]}  a5 {[%clk 0:00:27]} 26. Bc5 {[%clk 0:02:33]}  Rb2 {[%clk 0:00:12]} 27. Bb6 {[%clk 0:02:33]}  Rxb6 {[%clk 0:00:12]} 28. h3 {[%clk 0:02:33]}  Rb3 {[%clk 0:00:11]} 29. Nd2 {[%clk 0:02:32]}  Rxa3 {[%clk 0:00:10]} 30. Nb1 {[%clk 0:02:26]}  Ra1 {[%clk 0:00:09]} 31. Kf1 {[%clk 0:02:23]}  Bf8 {[%clk 0:00:09]} 32. Ke1 {[%clk 0:02:23]}  Bb4+ {[%clk 0:00:09]} 33. Kd1 {[%clk 0:02:22]}  a4 {[%clk 0:00:09]} 34. Kc2 {[%clk 0:02:21]}  Bf5+ {[%clk 0:00:08]} 35. Kb2 {[%clk 0:02:20]}  Rxb1+ {[%clk 0:00:06]} 36. Rxb1 {[%clk 0:02:21]}  Bxb1 {[%clk 0:00:06]} 37. Kxb1 {[%clk 0:02:22]}  Kf8 {[%clk 0:00:05]} 38. e4 {[%clk 0:02:22]}  c3 {[%clk 0:00:04]} 39. f4 {[%clk 0:02:23]}  Ke7 {[%clk 0:00:03]} 40. d5 {[%clk 0:02:24]}  Kd6 {[%clk 0:00:04]} 41. g4 {[%clk 0:02:25]}  Kc5 {[%clk 0:00:04]} 42. h4 {[%clk 0:02:26]}  Kd4 {[%clk 0:00:04]} 43. Kc2 {[%clk 0:02:25]}  Kxe4 {[%clk 0:00:04]} 44. f5 {[%clk 0:02:25]}  gxf5 {[%clk 0:00:04]} 45. g5 {[%clk 0:02:25]}  f4 {[%clk 0:00:03]} 46. h5 {[%clk 0:02:26]}  Kf5 {[%clk 0:00:03]} 47. d6 {[%clk 0:02:27]}  Bxd6 {[%clk 0:00:02]} 48. g6 {[%clk 0:02:27]}  f6 {[%clk 0:00:01]} 49. h6 {[%clk 0:02:28]}  Kxg6 {[%clk 0:00:01]} 50. Kd3 {[%clk 0:02:28]}  Kxh6 {[%clk 0:00:02]} 51. Ke2 {[%clk 0:02:29]}  Kg5 {[%clk 0:00:03]} 52. Kf3 {[%clk 0:02:30]}  Be5 {[%clk 0:00:03]} 53. Ke2 {[%clk 0:02:31]}  a3 {[%clk 0:00:03]} 54. Kd3 {[%clk 0:02:32]}  a2 {[%clk 0:00:04]} 55. Kc2 {[%clk 0:02:33]}  a1=Q {[%clk 0:00:05]} 56. Kb3 {[%clk 0:02:33]}  Qb2+ {[%clk 0:00:05]} 57. Kc4 {[%clk 0:02:34]}  Qb6 {[%clk 0:00:06]} 58. Kd5 {[%clk 0:02:34]}  Qd6+ {[%clk 0:00:06]} 0-1

[Event "December 5 Early 2023"]
[Site "https://www.chess.com"]
[Date "2023.12.05"]
[Round "5"]
[White "Shubhi Gupta"]
[Black "Bold, Andre"]
[Result "0-1"]
[Board "153"]
[TimeControl "180+1"]
[WhiteFideId "25195425"]
[BlackFideId "16208471"]
[WhiteElo "2296"]
[BlackElo "2486"]
[WhiteTeam "IND"]
[BlackTeam "GER"]
[WhiteClock "0:00:18"]
[BlackClock "0:01:32"]

1. d4 {[%clk 0:03:00]}  d5 {[%clk 0:02:59]} 2. Nf3 {[%clk 0:03:00]}  Nf6 {[%clk 0:02:59]} 3. Bg5 {[%clk 0:03:01]}  c6 {[%clk 0:02:56]} 4. Nbd2 {[%clk 0:03:00]}  Bf5 {[%clk 0:02:56]} 5. e3 {[%clk 0:02:58]}  Nbd7 {[%clk 0:02:55]} 6. Bd3 {[%clk 0:02:55]}  Bxd3 {[%clk 0:02:55]} 7. cxd3 {[%clk 0:02:56]}  e6 {[%clk 0:02:55]} 8. e4 {[%clk 0:02:55]}  Be7 {[%clk 0:02:54]} 9. e5 {[%clk 0:02:54]}  Ng8 {[%clk 0:02:52]} 10. Be3 {[%clk 0:02:51]}  Qb6 {[%clk 0:02:50]} 11. Nb3 {[%clk 0:02:51]}  a5 {[%clk 0:02:47]} 12. Qc2 {[%clk 0:02:42]}  a4 {[%clk 0:02:45]} 13. Nc5 {[%clk 0:02:42]}  Bxc5 {[%clk 0:02:45]} 14. dxc5 {[%clk 0:02:43]}  Qb5 {[%clk 0:02:44]} 15. O-O {[%clk 0:02:39]}  Ne7 {[%clk 0:02:43]} 16. d4 {[%clk 0:02:35]}  h6 {[%clk 0:02:36]} 17. b3 {[%clk 0:01:56]}  axb3 {[%clk 0:02:27]} 18. axb3 {[%clk 0:01:57]}  O-O {[%clk 0:02:26]} 19. Qc3 {[%clk 0:01:43]}  Nf5 {[%clk 0:02:19]} 20. b4 {[%clk 0:01:41]}  b6 {[%clk 0:02:16]} 21. Nd2 {[%clk 0:01:37]}  Ra4 {[%clk 0:02:05]} 22. Rxa4 {[%clk 0:01:36]}  Qxa4 {[%clk 0:02:06]} 23. Ra1 {[%clk 0:01:37]}  Qb5 {[%clk 0:02:03]} 24. g4 {[%clk 0:01:32]}  Nxe3 {[%clk 0:01:58]} 25. fxe3 {[%clk 0:01:33]}  bxc5 {[%clk 0:01:57]} 26. bxc5 {[%clk 0:01:34]}  Rb8 {[%clk 0:01:55]} 27. Ra7 {[%clk 0:01:31]}  Nf8 {[%clk 0:01:50]} 28. e4 {[%clk 0:01:26]}  Qe2 {[%clk 0:01:45]} 29. exd5 {[%clk 0:00:51]}  exd5 {[%clk 0:01:35]} 30. Ra1 {[%clk 0:00:20]}  Qxg4+ {[%clk 0:01:33]} 31. Qg3 {[%clk 0:00:18]}  Qxd4+ {[%clk 0:01:32]} 0-1

[Event "December 5 Early 2023"]
[Site "https://www.chess.com"]
[Date "2023.12.05"]
[Round "5"]
[White "Cardozo Munar, Carlos Eduardo"]
[Black "Dobre, Claudiu-Cristian"]
[Result "0-1"]
[Board "154"]
[TimeControl "180+1"]
[WhiteFideId "4409477"]
[BlackFideId "1211854"]
[WhiteElo "2284"]
[BlackElo "2482"]
[WhiteTeam "COL"]
[BlackTeam "ROU"]
[WhiteClock "0:00:00"]
[BlackClock "0:00:05"]

1. d4 {[%clk 0:02:56]}  d5 {[%clk 0:02:59]} 2. c3 {[%clk 0:02:56]}  Nf6 {[%clk 0:02:51]} 3. Bg5 {[%clk 0:02:56]}  Ne4 {[%clk 0:02:51]} 4. h4 {[%clk 0:02:55]}  c5 {[%clk 0:02:26]} 5. dxc5 {[%clk 0:02:53]}  Nxg5 {[%clk 0:02:19]} 6. hxg5 {[%clk 0:02:53]}  e6 {[%clk 0:02:19]} 7. Nf3 {[%clk 0:02:53]}  Bxc5 {[%clk 0:02:18]} 8. e3 {[%clk 0:02:51]}  Nc6 {[%clk 0:02:18]} 9. Bd3 {[%clk 0:02:51]}  e5 {[%clk 0:02:04]} 10. g6 {[%clk 0:02:40]}  e4 {[%clk 0:02:00]} 11. Rxh7 {[%clk 0:02:39]}  O-O {[%clk 0:01:33]} 12. Nh4 {[%clk 0:01:00]}  fxg6 {[%clk 0:01:11]} 13. Nxg6 {[%clk 0:01:00]}  Kxh7 {[%clk 0:00:47]} 14. Nxf8+ {[%clk 0:00:58]}  Bxf8 {[%clk 0:00:41]} 15. Qh5+ {[%clk 0:00:58]}  Kg8 {[%clk 0:00:41]} 16. Bc2 {[%clk 0:00:56]}  Be6 {[%clk 0:00:38]} 17. Nd2 {[%clk 0:00:55]}  Qf6 {[%clk 0:00:29]} 18. O-O-O {[%clk 0:00:55]}  Qxf2 {[%clk 0:00:17]} 19. Rh1 {[%clk 0:00:29]}  Qxe3 {[%clk 0:00:17]} 20. Qh8+ {[%clk 0:00:29]}  Kf7 {[%clk 0:00:17]} 21. Qh5+ {[%clk 0:00:29]}  Ke7 {[%clk 0:00:17]} 22. Bb3 {[%clk 0:00:22]}  Kd7 {[%clk 0:00:15]} 23. Bxd5 {[%clk 0:00:18]}  Bxd5 {[%clk 0:00:12]} 24. Qxd5+ {[%clk 0:00:19]}  Kc7 {[%clk 0:00:12]} 25. Rh8 {[%clk 0:00:07]}  Rd8 {[%clk 0:00:11]} 26. Qf7+ {[%clk 0:00:05]}  Be7 {[%clk 0:00:11]} 27. Rxd8 {[%clk 0:00:05]}  Kxd8 {[%clk 0:00:12]} 28. Qg8+ {[%clk 0:00:04]}  Kd7 {[%clk 0:00:10]} 29. Qxg7 {[%clk 0:00:04]}  Qd3 {[%clk 0:00:05]} 30. Qg4+ {[%clk 0:00:02]}  Kc7 {[%clk 0:00:05]} 31. Qxe4 {[%clk 0:00:02]}  Qxe4 {[%clk 0:00:05]} 32. Nxe4 {[%clk 0:00:03]}  Ne5 {[%clk 0:00:05]} 33. Kc2 {[%clk 0:00:02]}  Kd7 {[%clk 0:00:05]} 34. a4 {[%clk 0:00:02]}  Ke6 {[%clk 0:00:05]} 35. b4 {[%clk 0:00:00]}  Kd5 {[%clk 0:00:05]} 0-1

[Event "December 5 Early 2023"]
[Site "https://www.chess.com"]
[Date "2023.12.05"]
[Round "5"]
[White "Sami, Sama"]
[Black "Grochal, Joey"]
[Result "0-1"]
[Board "155"]
[TimeControl "180+1"]
[WhiteFideId "4802926"]
[BlackFideId "1019945"]
[WhiteElo "2263"]
[BlackElo "2479"]
[WhiteTeam "IRQ"]
[BlackTeam "NED"]
[WhiteClock "0:00:59"]
[BlackClock "0:01:21"]

1. e4 {[%clk 0:03:00]}  c5 {[%clk 0:02:54]} 2. Nf3 {[%clk 0:03:00]}  e6 {[%clk 0:02:54]} 3. b3 {[%clk 0:02:59]}  Nf6 {[%clk 0:02:52]} 4. e5 {[%clk 0:02:54]}  Nd5 {[%clk 0:02:52]} 5. c4 {[%clk 0:02:52]}  Ne7 {[%clk 0:02:52]} 6. Bb2 {[%clk 0:02:50]}  Nbc6 {[%clk 0:02:52]} 7. d4 {[%clk 0:02:50]}  cxd4 {[%clk 0:02:52]} 8. Bxd4 {[%clk 0:02:47]}  Nxd4 {[%clk 0:02:51]} 9. Nxd4 {[%clk 0:02:47]}  Qa5+ {[%clk 0:02:47]} 10. Qd2 {[%clk 0:02:34]}  Qxe5+ {[%clk 0:02:47]} 11. Be2 {[%clk 0:02:35]}  Nc6 {[%clk 0:02:46]} 12. Nb5 {[%clk 0:02:28]}  Qxa1 {[%clk 0:02:33]} 13. O-O {[%clk 0:02:28]}  Qe5 {[%clk 0:02:33]} 14. f4 {[%clk 0:02:22]}  Bc5+ {[%clk 0:02:32]} 15. Kh1 {[%clk 0:02:22]}  Qb8 {[%clk 0:02:24]} 16. N1c3 {[%clk 0:02:20]}  a6 {[%clk 0:02:24]} 17. Ne4 {[%clk 0:02:21]}  axb5 {[%clk 0:02:22]} 18. cxb5 {[%clk 0:02:21]}  Be7 {[%clk 0:02:19]} 19. bxc6 {[%clk 0:02:20]}  bxc6 {[%clk 0:02:18]} 20. Ng5 {[%clk 0:02:15]}  h6 {[%clk 0:02:13]} 21. Nf3 {[%clk 0:02:13]}  O-O {[%clk 0:02:12]} 22. Ne5 {[%clk 0:02:13]}  Bf6 {[%clk 0:02:06]} 23. Nc4 {[%clk 0:02:08]}  d5 {[%clk 0:02:06]} 24. Ne3 {[%clk 0:02:07]}  Ba6 {[%clk 0:02:04]} 25. Ng4 {[%clk 0:02:06]}  Qd8 {[%clk 0:01:56]} 26. Rc1 {[%clk 0:02:01]}  Bxe2 {[%clk 0:01:54]} 27. Qxe2 {[%clk 0:02:02]}  Rc8 {[%clk 0:01:54]} 28. a4 {[%clk 0:02:01]}  c5 {[%clk 0:01:49]} 29. Qb5 {[%clk 0:01:58]}  c4 {[%clk 0:01:49]} 30. bxc4 {[%clk 0:01:56]}  dxc4 {[%clk 0:01:49]} 31. a5 {[%clk 0:01:55]}  Qd5 {[%clk 0:01:44]} 32. Qb4 {[%clk 0:01:47]}  c3 {[%clk 0:01:41]} 33. a6 {[%clk 0:01:40]}  c2 {[%clk 0:01:41]} 34. Ne3 {[%clk 0:01:32]}  Qd4 {[%clk 0:01:37]} 35. Qb3 {[%clk 0:01:24]}  Rfd8 {[%clk 0:01:34]} 36. h3 {[%clk 0:01:23]}  Qxe3 {[%clk 0:01:25]} 37. Qxe3 {[%clk 0:01:20]}  Rd1+ {[%clk 0:01:26]} 38. Kh2 {[%clk 0:01:17]}  Rxc1 {[%clk 0:01:26]} 39. Qxc1 {[%clk 0:01:13]}  Bb2 {[%clk 0:01:27]} 40. Qxb2 {[%clk 0:01:12]}  c1=Q {[%clk 0:01:27]} 41. Qb4 {[%clk 0:01:08]}  Qc4 {[%clk 0:01:22]} 42. Qb7 {[%clk 0:01:03]}  Qxf4+ {[%clk 0:01:21]} 43. g3 {[%clk 0:00:59]}  Rc2+ {[%clk 0:01:21]} 0-1

[Event "December 5 Early 2023"]
[Site "https://www.chess.com"]
[Date "2023.12.05"]
[Round "5"]
[White "De Souza, Cristiano Gomes"]
[Black "Kaplan, Avi Harrison"]
[Result "1-0"]
[Board "156"]
[TimeControl "180+1"]
[WhiteFideId "2151758"]
[BlackFideId "30934559"]
[WhiteElo "2267"]
[BlackElo "2479"]
[WhiteTeam "BRA"]
[BlackTeam "USA"]
[WhiteClock "0:00:49"]
[BlackClock "0:00:00"]

1. d4 {[%clk 0:03:00]}  Nf6 {[%clk 0:02:36]} 2. c4 {[%clk 0:02:58]}  g6 {[%clk 0:02:35]} 3. Nc3 {[%clk 0:02:57]}  Bg7 {[%clk 0:02:35]} 4. e4 {[%clk 0:02:57]}  d6 {[%clk 0:02:35]} 5. Be2 {[%clk 0:02:58]}  O-O {[%clk 0:02:35]} 6. Nf3 {[%clk 0:02:58]}  Nc6 {[%clk 0:02:34]} 7. O-O {[%clk 0:02:59]}  e5 {[%clk 0:02:33]} 8. d5 {[%clk 0:02:59]}  Ne7 {[%clk 0:02:32]} 9. Ne1 {[%clk 0:03:00]}  a5 {[%clk 0:02:29]} 10. Be3 {[%clk 0:03:00]}  Nd7 {[%clk 0:02:29]} 11. Nd3 {[%clk 0:03:00]}  b6 {[%clk 0:02:29]} 12. a3 {[%clk 0:02:59]}  f5 {[%clk 0:02:27]} 13. f3 {[%clk 0:02:57]}  Nc5 {[%clk 0:02:25]} 14. b4 {[%clk 0:02:56]}  Na6 {[%clk 0:02:21]} 15. Rb1 {[%clk 0:02:53]}  h6 {[%clk 0:02:18]} 16. c5 {[%clk 0:02:53]}  g5 {[%clk 0:02:10]} 17. Nb5 {[%clk 0:02:47]}  g4 {[%clk 0:01:51]} 18. cxb6 {[%clk 0:02:38]}  cxb6 {[%clk 0:01:51]} 19. bxa5 {[%clk 0:02:30]}  bxa5 {[%clk 0:01:50]} 20. Nb2 {[%clk 0:02:28]}  gxf3 {[%clk 0:01:46]} 21. Bxf3 {[%clk 0:02:27]}  Rb8 {[%clk 0:01:33]} 22. Nc4 {[%clk 0:02:25]}  Rf6 {[%clk 0:01:19]} 23. Qa4 {[%clk 0:02:04]}  Bd7 {[%clk 0:01:08]} 24. Nxa5 {[%clk 0:02:01]}  fxe4 {[%clk 0:01:02]} 25. Bxe4 {[%clk 0:02:00]}  Rxf1+ {[%clk 0:01:02]} 26. Kxf1 {[%clk 0:01:59]}  Nc7 {[%clk 0:00:55]} 27. Nc6 {[%clk 0:01:56]}  Bxc6 {[%clk 0:00:42]} 28. dxc6 {[%clk 0:01:53]}  d5 {[%clk 0:00:43]} 29. Nxc7 {[%clk 0:01:49]}  Qxc7 {[%clk 0:00:38]} 30. Rxb8+ {[%clk 0:01:37]}  Qxb8 {[%clk 0:00:39]} 31. Bxd5+ {[%clk 0:01:22]}  Nxd5 {[%clk 0:00:40]} 32. Qc4 {[%clk 0:01:21]}  Qf8+ {[%clk 0:00:35]} 33. Ke2 {[%clk 0:01:09]}  Qf7 {[%clk 0:00:34]} 34. Kd3 {[%clk 0:01:01]}  e4+ {[%clk 0:00:31]} 35. Qxe4 {[%clk 0:00:55]}  Nf6 {[%clk 0:00:20]} 36. Qc4 {[%clk 0:00:54]}  Qxc4+ {[%clk 0:00:19]} 37. Kxc4 {[%clk 0:00:53]}  Ng4 {[%clk 0:00:18]} 38. Bb6 {[%clk 0:00:52]}  Ne5+ {[%clk 0:00:16]} 39. Kd5 {[%clk 0:00:51]}  Nxc6 {[%clk 0:00:16]} 40. Kxc6 {[%clk 0:00:50]}  Bc3 {[%clk 0:00:15]} 41. a4 {[%clk 0:00:49]}  Kg7 {[%clk 0:00:14]} 42. a5 {[%clk 0:00:50]}  Bxa5 {[%clk 0:00:12]} 43. Bxa5 {[%clk 0:00:49]}  Kg6 {[%clk 0:00:13]} 44. Kd5 {[%clk 0:00:50]}  Kg5 {[%clk 0:00:14]} 45. Ke4 {[%clk 0:00:50]}  Kg4 {[%clk 0:00:14]} 46. Bd2 {[%clk 0:00:49]}  h5 {[%clk 0:00:14]} 47. Bf4 {[%clk 0:00:49]}  h4 {[%clk 0:00:14]} 48. h3+ {[%clk 0:00:49]}  Kh5 {[%clk 0:00:13]} 49. Kf3 {[%clk 0:00:48]}  Kg6 {[%clk 0:00:10]} 50. Kg4 {[%clk 0:00:48]}  Kg7 {[%clk 0:00:07]} 51. Kxh4 {[%clk 0:00:49]}  Kh7 {[%clk 0:00:06]} 52. Kg4 {[%clk 0:00:49]}  Kg6 {[%clk 0:00:06]} 53. h4 {[%clk 0:00:49]}  Kh7 {[%clk 0:00:05]} 54. Kf5 {[%clk 0:00:50]}  Kg7 {[%clk 0:00:05]} 55. h5 {[%clk 0:00:50]}  Kf7 {[%clk 0:00:03]} 56. g4 {[%clk 0:00:51]}  Kf8 {[%clk 0:00:03]} 57. g5 {[%clk 0:00:51]}  Kg8 {[%clk 0:00:03]} 58. g6 {[%clk 0:00:51]}  Kg7 {[%clk 0:00:02]} 59. h6+ {[%clk 0:00:50]}  Kh8 {[%clk 0:00:01]} 60. Be5+ {[%clk 0:00:49]}  Kg8 {[%clk 0:00:00]} 61. h7+ {[%clk 0:00:49]} 1-0

[Event "December 5 Early 2023"]
[Site "https://www.chess.com"]
[Date "2023.12.05"]
[Round "5"]
[White "Mizzi, Jack"]
[Black "Zoete, Roelant"]
[Result "0-1"]
[Board "158"]
[TimeControl "180+1"]
[WhiteFideId "5602521"]
[BlackFideId "40103269"]
[WhiteElo "2459"]
[BlackElo "2233"]
[WhiteTeam "MLT"]
[BlackTeam "NED"]
[WhiteClock "0:00:02"]
[BlackClock "0:00:04"]

1. d4 {[%clk 0:03:00]}  d5 {[%clk 0:02:58]} 2. c4 {[%clk 0:03:00]}  e6 {[%clk 0:02:57]} 3. Nf3 {[%clk 0:03:00]}  Nf6 {[%clk 0:02:58]} 4. g3 {[%clk 0:03:01]}  Be7 {[%clk 0:02:58]} 5. Bg2 {[%clk 0:03:01]}  O-O {[%clk 0:02:58]} 6. O-O {[%clk 0:03:01]}  b6 {[%clk 0:02:59]} 7. Nbd2 {[%clk 0:03:00]}  Bb7 {[%clk 0:02:59]} 8. Qc2 {[%clk 0:03:00]}  c5 {[%clk 0:02:59]} 9. Rd1 {[%clk 0:02:59]}  Nc6 {[%clk 0:03:00]} 10. dxc5 {[%clk 0:02:58]}  Bxc5 {[%clk 0:02:58]} 11. Nb3 {[%clk 0:02:56]}  Qe7 {[%clk 0:02:50]} 12. cxd5 {[%clk 0:02:38]}  Nxd5 {[%clk 0:02:42]} 13. Nxc5 {[%clk 0:02:29]}  bxc5 {[%clk 0:02:43]} 14. e4 {[%clk 0:02:28]}  Ndb4 {[%clk 0:02:42]} 15. Qb1 {[%clk 0:01:59]}  Rfd8 {[%clk 0:02:37]} 16. Be3 {[%clk 0:01:57]}  Nd4 {[%clk 0:02:27]} 17. Nxd4 {[%clk 0:01:51]}  cxd4 {[%clk 0:02:28]} 18. Bxd4 {[%clk 0:01:50]}  Rd7 {[%clk 0:02:16]} 19. a3 {[%clk 0:01:42]}  Nc6 {[%clk 0:02:13]} 20. Bc3 {[%clk 0:01:42]}  Rad8 {[%clk 0:02:11]} 21. Qc2 {[%clk 0:01:34]}  Nd4 {[%clk 0:02:04]} 22. Bxd4 {[%clk 0:01:21]}  Rxd4 {[%clk 0:02:05]} 23. Rxd4 {[%clk 0:01:21]}  Rxd4 {[%clk 0:02:06]} 24. Rd1 {[%clk 0:01:20]}  Rxd1+ {[%clk 0:01:39]} 25. Qxd1 {[%clk 0:01:14]}  h6 {[%clk 0:01:37]} 26. e5 {[%clk 0:01:08]}  Bxg2 {[%clk 0:01:28]} 27. Kxg2 {[%clk 0:01:08]}  Qb7+ {[%clk 0:01:29]} 28. Qf3 {[%clk 0:01:07]}  Qxb2 {[%clk 0:01:26]} 29. Qa8+ {[%clk 0:01:08]}  Kh7 {[%clk 0:01:26]} 30. Qxa7 {[%clk 0:01:08]}  Qxe5 {[%clk 0:01:25]} 31. Qb7 {[%clk 0:01:01]}  Kg6 {[%clk 0:00:56]} 32. a4 {[%clk 0:00:58]}  Qa5 {[%clk 0:00:51]} 33. Qb5 {[%clk 0:00:50]}  Qa8+ {[%clk 0:00:50]} 34. f3 {[%clk 0:00:49]}  Qd8 {[%clk 0:00:39]} 35. a5 {[%clk 0:00:36]}  Qd2+ {[%clk 0:00:38]} 36. Kh3 {[%clk 0:00:35]}  Qd1 {[%clk 0:00:26]} 37. a6 {[%clk 0:00:17]}  Qxf3 {[%clk 0:00:13]} 38. a7 {[%clk 0:00:16]}  f5 {[%clk 0:00:08]} 39. Qe8+ {[%clk 0:00:11]}  Kg5 {[%clk 0:00:08]} 40. Qe7+ {[%clk 0:00:07]}  Kh5 {[%clk 0:00:04]} 41. Qf7+ {[%clk 0:00:06]}  g6 {[%clk 0:00:04]} 42. Qxe6 {[%clk 0:00:02]}  Qf1# {[%clk 0:00:04]} 0-1